bitfinex-derivatives/quotes_ETHF0:USTF0_20251103
["timestamp","ask_amount","ask_price","bid_price","bid_amount"]
[1762151661651,0.30414227,3725.4,3724.3,0.00274141]
[1762151661853,0.30414227,3725.3,3724.3,0.00274141]
[1762151662051,0.30414227,3725.2,3724.3,0.00274141]
[1762151662354,0.1312,3725.0,3724.3,0.00274141]
[1762151662549,0.13388932,3725.0,3724.3,0.00274141]
[1762151666159,0.30471595,3724.9,3724.3,0.00274141]
[1762151666462,0.13388932,3725.0,3724.3,0.00274141]
[1762151666659,0.30471699,3724.9,3724.3,0.00274141]
[1762151666861,0.13388932,3725.0,3724.3,0.00274141]
[1762151667059,0.2233,3724.4,3724.3,0.00274141]
[1762151667763,0.528217,3724.4,3724.3,0.00274141]
[1762151669567,0.528217,3724.4,3723.0,0.62155]
[1762151669568,0.528217,3724.4,3723.0,0.138]
[1762151669870,0.304917,3724.3,3723.0,0.138]
[1762151670164,0.304917,3724.2,3723.0,0.138]
[1762151670365,0.1402,3724.0,3723.0,0.138]
[1762151670654,0.30528827,3723.9,3723.0,0.14098733]
[1762151670853,0.30528827,3723.8,3723.0,0.14098733]
[1762151671059,0.1402,3724.0,3723.0,0.14098733]
[1762151671252,0.30525887,3723.9,3723.0,0.62453733]
[1762151671452,0.30525887,3723.8,3723.0,0.14098733]
[1762151671754,0.30525887,3723.7,3723.0,0.14098733]
[1762151672059,0.1402,3724.0,3723.0,0.14098733]
[1762151672257,0.30527067,3723.9,3723.0,0.62453733]
[1762151672454,0.30527067,3723.8,3723.0,0.62453733]
[1762151672652,0.30527067,3723.7,3723.0,0.14098733]
[1762151672858,0.1402,3724.0,3723.0,0.62453733]
[1762151673166,0.30525597,3723.9,3723.1,0.48354]
[1762151673352,0.30525597,3723.8,3723.0,0.14098733]
[1762151673552,0.30525597,3723.7,3723.0,0.14098733]
[1762151673862,0.1402,3724.0,3723.0,0.14098733]
[1762151674054,0.30519015,3723.9,3723.1,0.48354]
[1762151674254,0.30519015,3723.8,3723.1,0.48354]
[1762151674455,0.1402,3724.0,3723.1,0.48354]
[1762151674753,0.30519746,3723.9,3723.1,0.48354]
[1762151674953,0.30519746,3723.8,3723.1,0.48354]
[1762151675166,0.1402,3724.0,3723.1,0.48354]
[1762151675363,0.30518627,3723.9,3723.1,0.48354]
[1762151675562,0.30518627,3723.8,3723.1,0.48354]
[1762151675759,0.1402,3724.0,3723.0,0.14098733]
[1762151675957,0.30518728,3723.9,3723.0,0.14098733]
[1762151676156,0.30518728,3723.8,3723.1,0.48354]
[1762151676363,0.1402,3724.0,3723.1,0.48354]
[1762151676666,0.30513831,3723.9,3723.1,0.48354]
[1762151676860,0.30513831,3723.8,3723.0,0.14098733]
[1762151677164,0.1402,3724.0,3723.0,0.14098733]
[1762151677465,0.30513114,3723.9,3723.1,0.48354]
[1762151677658,0.30513114,3723.8,3723.0,0.14098733]
[1762151677865,0.2403,3723.1,3723.0,0.00298733]
[1762151684061,0.54580044,3723.1,3723.0,0.00298733]
[1762151685770,0.30550044,3723.1,3723.0,0.37038733]
[1762151686070,0.30556263,3723.4,3723.0,0.37038733]
[1762151686372,0.30556263,3723.4,3723.0,0.23888733]
[1762151688473,0.30556263,3723.4,3723.0,0.37038733]
[1762151688873,0.30556263,3723.4,3723.0,0.23888733]
[1762151691575,0.30556263,3723.4,3723.0,0.37038733]
[1762151692671,0.30556263,3723.4,3723.3,0.2359]
[1762151693376,0.30556263,3723.9,3723.3,0.2359]
[1762151693576,0.98633345,3723.8,3723.3,0.2359]
[1762151693777,0.98633345,3723.7,3723.3,0.2359]
[1762151694081,0.30556263,3723.6,3723.5,0.2359]
[1762151694279,0.135,3723.5,3723.0,0.13448733]
[1762151694575,0.30556263,3723.4,3723.0,0.13448733]
[1762151694775,0.2189,3723.1,3723.0,0.00298733]
[1762151695478,0.30556263,3723.1,3723.0,0.23888733]
[1762151695669,0.30556263,3723.4,3723.0,0.37038733]
[1762151695875,0.30556263,3723.3,3723.2,0.2359]
[1762151696069,0.135,3723.5,3723.3,0.2359]
[1762151696275,0.2189,3723.1,3723.0,0.00298733]
[1762151696675,0.52530786,3723.1,3723.0,0.00298733]
[1762151698078,0.52530786,3723.1,3723.0,0.23888733]
[1762151698278,0.30640786,3723.1,3723.0,0.23888733]
[1762151698479,0.30640786,3723.1,3723.0,0.37038733]
[1762151701876,0.30640786,3723.1,3723.0,0.23888733]
[1762151702079,0.52530786,3723.1,3723.0,0.23888733]
[1762151703377,0.30640786,3723.1,3723.0,0.37038733]
[1762151703877,0.52530786,3723.1,3722.1,2.38905857]
[1762151704080,1.12359708,3723.0,3722.0,0.1316]
[1762151704269,0.98859708,3722.9,3722.0,0.1316]
[1762151704472,0.30640786,3722.8,3722.0,0.1316]
[1762151704669,0.30640786,3722.7,3722.0,0.1316]
[1762151704879,0.135,3722.5,3722.0,0.1316]
[1762151705078,0.30640786,3722.4,3722.0,0.13477623]
[1762151705377,0.30640786,3722.4,3722.0,0.61845623]
[1762151705580,0.30640786,3722.4,3722.3,0.2359]
[1762151707385,0.52530786,3722.4,3722.3,0.2359]
[1762151708085,0.52530786,3722.4,3722.0,0.00317623]
[1762151708278,0.2189,3722.1,3722.0,0.00317623]
[1762151708481,0.2212168,3722.1,3722.0,0.00317623]
[1762151708681,0.52762466,3722.1,3722.0,0.00317623]
[1762151708883,0.52795879,3722.1,3722.0,0.00317623]
[1762151710083,0.52795879,3722.1,3722.0,0.23907623]
[1762151710279,0.0023168,3722.1,3722.0,1.73150374]
[1762151710585,0.135,3723.0,3722.0,1.73150374]
[1762151710890,0.135,3723.0,3722.9,0.2359]
[1762151711186,0.66040984,3723.0,3722.4,1.42872751]
[1762151711380,0.30650984,3722.9,3722.4,1.42872751]
[1762151711683,0.30650984,3722.9,3722.1,1.42872751]
[1762151711684,0.30943786,3722.9,3722.1,1.42872751]
[1762151711883,0.30650984,3722.8,3722.1,1.42872751]
[1762151712387,0.30650984,3722.8,3722.0,0.06687623]
[1762151713089,0.2189,3722.1,3722.0,0.00317623]
[1762151714092,0.135,3722.5,3722.0,0.23907623]
[1762151714289,0.30698798,3722.4,3722.0,0.23907623]
[1762151714482,0.30698798,3722.3,3722.0,0.23907623]
[1762151714681,0.135,3722.5,3722.0,0.23907623]
[1762151714991,0.30698822,3722.4,3722.3,0.2359]
[1762151715183,0.00292802,3722.9,3722.3,0.2359]
[1762151715484,0.00292802,3722.9,3722.0,0.06687623]
[1762151715485,0.30697052,3722.8,3722.7,0.2177]
[1762151716387,0.00292802,3722.9,3722.8,0.70128]
[1762151716890,0.00292802,3722.9,3722.7,1.81049147]
[1762151716891,0.1402,3724.0,3723.0,0.1315]
[1762151717093,0.1366,3724.5,3723.9,0.2177]
[1762151717289,0.98763232,3724.4,3723.9,0.2177]
[1762151717490,0.30695253,3724.3,3723.9,0.2177]
[1762151717689,0.30695253,3724.2,3723.9,0.2177]
[1762151717896,0.30695253,3724.1,3723.9,0.2177]
[1762151718091,0.30695253,3724.0,3723.9,0.2177]
[1762151718291,0.30695253,3724.0,3723.4,1.81049147]
[1762151718292,0.68255253,3724.0,3723.4,1.81049147]
[1762151718491,0.30695253,3723.9,3723.4,1.81049147]
[1762151718700,0.30695253,3723.8,3723.7,0.2177]
[1762151719105,0.00228336,3724.2,3723.9,0.2177]
[1762151719306,0.00228336,3724.2,3724.1,0.2177]
[1762151720499,1.42391177,3725.9,3724.9,0.2177]
[1762151720700,0.30652654,3725.4,3725.0,0.1295]
[1762151720900,0.1366,3726.5,3725.2,0.2177]
[1762151721097,0.1366,3726.5,3725.3,0.2177]
[1762151721297,0.239,3725.4,3725.3,0.2177]
[1762151721493,0.24222019,3725.4,3725.3,0.22095924]
[1762151721804,0.24222019,3725.4,3725.3,0.00325924]
[1762151722201,0.24222019,3725.4,532.75,35.0]
[1762151722202,0.239,3723.8,3723.0,0.62275]
[1762151722403,0.239,3723.8,3723.0,0.1392]
[1762151723199,0.1366,3724.5,3723.3,1.81049147]
[1762151723398,0.30572026,3724.4,3723.3,1.81049147]
[1762151723591,0.30572026,3724.3,3723.3,1.81049147]
[1762151723794,0.3057257,3724.2,3723.3,1.81049147]
[1762151724002,0.1366,3724.0,3723.0,0.14209299]
[1762151724701,0.1366,3724.0,3723.3,0.4835]
[1762151724898,0.1366,3724.5,3723.2,1.81049147]
[1762151725094,0.30566638,3724.4,3723.2,1.81049147]
[1762151725300,0.30566638,3724.3,3723.2,2.29401147]
[1762151725494,0.30566638,3724.2,3723.2,2.29401147]
[1762151725699,0.1366,3724.5,3723.2,2.29401147]
[1762151725900,0.30564856,3724.4,3723.2,2.29401147]
[1762151726103,0.30564856,3724.3,3723.2,2.29401147]
[1762151726402,0.1366,3724.5,3723.2,2.29401147]
[1762151726602,0.30561589,3724.4,3723.2,2.29401147]
[1762151726804,0.30561589,3724.3,3723.2,2.29401147]
[1762151727104,0.1366,3724.5,3723.2,2.29401147]
[1762151727303,0.30559555,3724.4,3723.2,2.29401147]
[1762151727499,0.1366,3724.5,3723.5,0.0415]
[1762151728302,0.1366,3724.5,3723.5,0.52498]
[1762151728803,0.00322019,3725.4,3724.9,0.2344]
[1762151729002,0.00322019,3725.4,3725.3,0.2344]
[1762151730512,0.00322019,3725.4,3725.0,0.1392]
[1762151730808,0.00322019,3725.4,3724.6,2.186]
[1762151731008,0.00322019,3725.4,3724.6,2.66934]
[1762151732298,0.00322019,3725.4,3724.0,0.62261]
[1762151732497,0.00322019,3725.4,3724.0,0.1392]
[1762151732706,0.00322019,3725.4,3724.2,0.48339]
[1762151732906,0.00322019,3725.4,3724.5,0.1313]
[1762151733294,0.00322019,3725.4,3724.5,1.94179147]
[1762151733497,0.00322019,3725.4,3724.7,0.48332]
[1762151733894,0.00322019,3725.4,3724.5,1.94179147]
[1762151734508,0.00322019,3725.4,3724.6,0.48334]
[1762151734909,0.00322019,3725.4,3724.5,1.94179147]
[1762151735109,0.00322019,3725.4,3724.6,0.48334]
[1762151737008,0.00322019,3725.4,3724.5,1.94179147]
[1762151737207,0.00322019,3725.4,3725.3,0.2344]
[1762151737717,0.24332019,3725.4,3725.0,0.1431]
[1762151738415,0.1314,3726.5,3725.3,0.2344]
[1762151738609,0.30472988,3726.4,3725.3,0.2344]
[1762151738808,0.1314,3726.5,3725.3,0.2344]
[1762151739010,0.30473133,3726.4,3725.3,0.2344]
[1762151739210,0.30478397,3726.3,3725.3,0.2344]
[1762151739412,0.00260583,3726.3,3725.3,0.2344]
[1762151740106,0.30504974,3726.2,3725.3,0.2344]
[1762151740304,0.1314,3726.0,3725.3,0.2344]
[1762151741105,0.00260583,3726.3,3725.6,0.48321]
[1762151741916,0.00260583,3726.3,3725.5,0.1431]
[1762151742104,0.00260583,3726.3,3726.2,0.2344]
[1762151742415,0.00260583,3726.3,3726.2,0.23642453]
[1762151748315,0.1314,3728.0,3726.7,0.48307]
[1762151748525,0.97795986,3727.9,3727.0,0.1315]
[1762151748814,0.97795986,3727.8,3727.0,0.1315]
[1762151749020,0.29981378,3727.7,3726.7,2.29355147]
[1762151749220,0.1405,3727.5,3726.8,0.48306]
[1762151749416,0.00226466,3727.7,3727.3,0.2256]
[1762151749417,0.29981378,3727.4,3727.3,0.2256]
[1762151752020,0.53841378,3727.4,3726.6,1.81049147]
[1762151752220,0.53841378,3727.4,3726.5,0.61459]
[1762151752221,1.42391177,3729.1,3727.6,0.2256]
[1762151752426,1.89574736,3729.5,3728.5,0.0811]
[1762151752427,0.67755178,3729.0,3728.5,0.0811]
[1762151752722,0.1405,3729.5,3728.5,0.0811]
[1762151753419,0.14369942,3729.5,3728.5,0.0811]
[1762151753919,0.14369942,3729.5,3728.0,2.37449147]
[1762151754120,0.14369942,3729.5,3728.0,2.58970094]
[1762151754318,0.14369942,3729.5,3728.0,1.89159147]
[1762151755118,0.14369942,3729.5,3728.0,2.37449147]
[1762151755518,0.14369942,3729.5,3728.5,0.1226]
[1762151756528,0.14369942,3729.5,3728.5,2.41592147]
[1762151756821,0.14369942,3729.5,3728.5,1.93309147]
[1762151758324,0.14369942,3729.5,3728.5,2.41592147]
[1762151760222,0.14369942,3729.5,3728.5,1.93309147]
[1762151760423,0.14369942,3729.5,3728.5,2.41593147]
[1762151760627,0.14369942,3729.5,3728.6,0.48282]
[1762151760927,0.14369942,3729.5,3728.5,1.93309147]
[1762151761124,0.14369942,3729.5,3728.0,1.89159147]
[1762151761325,0.14369942,3729.5,3728.0,2.37449147]
[1762151761625,0.14369942,3729.5,3728.0,0.0811]
[1762151761817,0.66374474,3729.4,3728.0,0.0811]
[1762151762127,0.66374474,3729.3,3728.0,0.0811]
[1762151762422,0.66374474,3729.2,3728.0,0.0811]
[1762151762621,0.1405,3729.0,3728.0,0.0811]
[1762151765128,0.91895171,3728.9,3727.5,0.1315]
[1762151765428,0.91895171,3728.8,3727.5,0.1315]
[1762151765628,0.91895171,3728.7,3727.5,0.1315]
[1762151765925,0.1405,3728.5,3727.5,0.1315]
[1762151766129,0.91895171,3728.4,3727.5,0.1315]
[1762151766321,0.66389294,3728.3,3727.5,0.1315]
[1762151766521,0.66389294,3728.2,3727.5,0.1315]
[1762151766728,0.1405,3728.5,3727.5,0.1315]
[1762151766926,0.66432645,3728.4,3728.3,0.2256]
[1762151767130,0.00319942,3729.5,3729.4,0.2256]
[1762151767428,0.00319942,3729.5,3729.4,0.22885004]
[1762151767818,0.00319942,3729.5,3729.4,0.00325004]
[1762151767819,0.38229942,3729.5,3729.4,0.00325004]
[1762151768521,1.04743805,3729.5,3729.4,0.00325004]
[1762151769628,0.38229942,3729.5,3729.4,0.00325004]
[1762151770023,1.04768821,3729.5,3729.4,0.00325004]
[1762151770833,0.66858821,3729.5,3729.4,0.22885004]
[1762151771336,1.04768821,3729.5,3729.4,0.00325004]
[1762151775331,0.66858821,3729.5,3729.4,0.23415004]
[1762151776220,0.89688821,3729.5,3729.4,0.00325004]
[1762151776420,0.66858821,3729.5,3729.4,0.23415004]
[1762151776829,0.00319942,3729.5,3729.4,0.23415004]
[1762151779330,0.67129489,3729.5,3729.4,0.23415004]
[1762151779525,0.89959489,3729.5,3729.4,0.23415004]
[1762151779929,1.03159489,3729.5,3729.4,0.23415004]
[1762151780728,1.03159489,3729.5,3729.4,0.00325004]
[1762151781441,1.27125677,3729.5,3729.4,0.00325004]
[1762151781630,1.03159489,3729.5,3729.4,0.00325004]
[1762151782230,1.27152226,3729.5,3729.4,0.00325004]
[1762151783444,1.27152352,3729.5,3729.4,0.00325004]
[1762151789138,10.71952352,3729.5,3729.4,0.00325004]
[1762151789341,1.27152352,3729.5,3729.4,0.00325004]
[1762151789551,10.71552352,3729.5,3729.4,0.00325004]
[1762151791047,10.71352352,3729.5,3729.4,0.00325004]
[1762151791342,0.2379,3728.3,3728.2,3.575]
[1762151791548,0.1311,3729.0,3728.2,0.2321]
[1762151792544,0.1311,3729.0,3728.2,0.00333399]
[1762151793144,0.1311,3729.0,3728.2,0.48620399]
[1762151793447,0.1311,3729.0,3728.2,0.00333399]
[1762151793640,0.2379,3728.3,3728.2,0.00333399]
[1762151796543,0.51443633,3728.3,3728.2,0.00333399]
[1762151799148,0.27653633,3728.3,3728.2,0.23543399]
[1762151799458,0.1311,3728.5,3728.3,0.2321]
[1762151799647,0.27635912,3728.4,3728.3,0.2321]
[1762151799950,0.51425912,3728.4,3728.3,0.2321]
[1762151800455,0.1311,3729.0,3728.5,0.142]
[1762151801150,0.1311,3729.0,3728.2,0.00333399]
[1762151801151,0.30919172,3728.9,3728.2,0.00333399]
[1762151801345,0.30919172,3728.8,3728.2,0.00333399]
[1762151801654,0.2379,3728.3,3728.2,0.00333399]
[1762151802544,0.54704019,3728.3,3728.2,0.00333399]
[1762151803642,0.2379,3728.3,3728.2,0.00333399]
[1762151804047,0.54698809,3728.3,3728.2,0.00333399]
[1762151811657,0.54698809,3728.3,3727.1,3.575]
[1762151811860,0.54698809,3728.3,3726.9,14.88341827]
[1762151811861,0.30908809,3728.2,3727.2,0.48301]
[1762151812052,0.1343,3728.0,3727.1,0.48302]
[1762151812248,0.30908809,3727.9,3727.1,0.48302]
[1762151812661,0.30908809,3727.9,3726.8,9.442]
[1762151812852,0.30908809,3727.9,3727.0,0.36010885]
[1762151813248,0.30908809,3727.9,3727.1,0.48302]
[1762151813962,0.30908809,3727.9,3727.0,0.36010885]
[1762151814148,0.30908809,3727.9,3727.0,0.84313885]
[1762151815157,0.30908809,3727.9,3727.0,0.14279809]
[1762151815668,0.30908809,3727.9,3727.2,0.48301]
[1762151816162,0.30908809,3727.9,3727.1,0.48302]
[1762151816958,0.30908809,3727.9,3727.0,0.14279809]
[1762151816959,0.13586642,3727.9,3727.8,0.2327]
[1762151817151,0.1311,3729.0,3728.3,0.2327]
[1762151817351,0.66522109,3728.9,3728.3,0.2327]
[1762151817552,0.66522109,3728.8,3728.3,0.2327]
[1762151817760,0.66522109,3728.7,3728.3,0.2327]
[1762151818062,0.232,3728.4,3728.0,0.1375]
[1762151818764,0.1311,3729.0,3728.4,0.2327]
[1762151818965,0.66544889,3728.9,3728.4,0.2327]
[1762151819159,0.1311,3729.0,3728.4,0.2327]
[1762151820963,0.13519942,3729.5,3728.9,0.2327]
[1762151821157,0.66571862,3729.4,3728.9,0.2327]
[1762151821365,0.66571862,3729.3,3728.9,0.2327]
[1762151821567,0.13519942,3729.5,3729.0,0.62027]
[1762151821767,0.00319942,3729.5,3729.4,0.2327]
[1762151822162,0.23519942,3729.5,3729.4,0.2327]
[1762151823467,0.78394723,3729.5,3729.4,0.2327]
[1762151824175,0.78394723,3729.5,3728.5,0.1375]
[1762151824176,0.91824723,3729.5,3728.5,0.1375]
[1762151824370,0.54874781,3729.0,3728.6,0.48282]
[1762151824674,0.54874781,3729.0,3728.9,0.2327]
[1762151826766,0.54874781,3729.0,3728.9,6.9367]
[1762151826965,0.1343,3730.5,3729.6,0.2327]
[1762151827165,0.1343,3730.5,3730.0,0.53614]
[1762151827980,0.13664484,3730.5,3730.0,0.05612384]
[1762151829071,0.30631786,3730.4,3730.0,0.05612384]
[1762151829270,0.13664484,3730.5,3730.0,0.05612384]
[1762151829472,0.13664484,3730.5,3730.0,0.53876384]
[1762151829674,0.36864484,3730.5,3730.4,0.2327]
[1762151829876,0.36864484,3730.5,3730.0,0.05612384]
[1762151831071,0.36864484,3730.5,3730.0,0.53875384]
[1762151831373,0.00234484,3730.5,3730.4,0.2327]
[1762151831573,0.00234484,3730.5,3730.0,0.05612384]
[1762151831574,0.1343,3732.0,3730.7,0.48255]
[1762151831773,0.1343,3732.0,3731.3,0.2327]
[1762151832176,0.232,3731.4,3730.5,0.1375]
[1762151832675,0.23450893,3731.4,3730.5,0.1375]
[1762151835374,0.23450893,3731.4,3730.5,0.62007]
[1762151835675,0.23450893,3731.4,3730.5,0.1375]
[1762151836271,0.23450893,3731.4,3730.2,1.80221244]
[1762151836574,0.23450893,3731.4,3730.0,0.05612384]
[1762151836964,0.23450893,3731.4,3730.0,0.53876384]
[1762151837277,0.23450893,3731.4,3730.0,0.05612384]
[1762151837975,0.23450893,3731.4,3730.1,0.48263]
[1762151838174,0.23450893,3731.4,3730.0,0.05612384]
[1762151838673,0.23450893,3731.4,3730.1,0.48263]
[1762151838864,0.23450893,3731.4,3730.0,0.05612384]
[1762151839265,0.23450893,3731.4,3730.2,0.48261]
[1762151839476,0.23450893,3731.4,3730.2,1.80221244]
[1762151839678,0.23450893,3731.4,3730.5,0.1312]
[1762151840071,0.23450893,3731.4,3730.5,0.61378]
[1762151840268,0.23450893,3731.4,3730.7,1.80221244]
[1762151840483,0.23450893,3731.4,3730.8,0.48253]
[1762151840676,0.23450893,3731.4,3730.9,0.48253]
[1762151840879,0.23450893,3731.4,3731.0,0.1416]
[1762151842166,0.00250893,3731.4,3731.3,0.2174]
[1762151848484,0.30771166,3731.4,3731.3,0.2174]
[1762151848674,0.00250893,3731.4,3731.3,0.2174]
[1762151850279,0.30854198,3731.4,3731.3,0.2174]
[1762151853275,0.53514198,3731.4,3730.8,3.575]
[1762151853482,0.30603305,3731.3,3730.8,3.575]
[1762151853885,0.2266,3730.9,3730.8,3.575]
[1762151854087,0.53263305,3730.9,3730.8,3.7949]
[1762151855580,0.30603305,3730.9,3730.8,3.7949]
[1762151855780,0.53263305,3730.9,3730.8,3.7949]
[1762151856183,0.53263305,3730.9,3730.8,3.575]
[1762151856887,0.53263305,3730.9,3730.8,3.7949]
[1762151857282,0.53263305,3730.9,3730.8,3.575]
[1762151857785,0.2266,3730.9,3730.8,3.575]
[1762151857985,0.2266,3730.9,3730.5,0.1314]
[1762151858185,0.13,3731.0,3730.5,0.1314]
[1762151858186,0.30742808,3730.8,3730.7,0.2199]
[1762151858377,0.30742808,3730.8,3730.7,1.3792533]
[1762151859079,0.13,3731.0,3730.7,1.3792533]
[1762151860082,0.30761087,3730.9,3730.7,1.3792533]
[1762151860283,0.30761087,3730.8,3730.7,1.3792533]
[1762151864687,0.00250893,3731.4,3731.3,0.2199]
[1762151864893,0.94954033,3731.4,3731.3,1.3792533]
[1762151869795,0.28008299,3731.4,3731.3,0.2199]
[1762151870591,0.28020596,3731.4,3731.3,0.2199]
[1762151870891,1.56821177,3732.5,3731.5,0.1389]
[1762151871092,0.90553543,3732.4,3731.5,0.62135]
[1762151871293,0.66603543,3732.3,3732.2,0.2254]
[1762151871500,0.2395,3732.3,3732.2,0.2254]
[1762151871796,0.2395,3732.3,3731.5,2.54760113]
[1762151871984,0.2423698,3732.3,3731.5,2.06515113]
[1762151872390,0.2423698,3732.3,3731.8,1.1593533]
[1762151872893,0.2395,3731.6,3731.4,1.1593533]
[1762151873087,0.2395,3731.6,3731.5,0.2254]
[1762151873289,0.1443,3732.0,3731.5,0.2254]
[1762151873492,0.2395,3731.8,3731.7,1.1593533]
[1762151874802,0.2395,3731.8,3731.3,1.1593533]
[1762151875199,0.2395,3731.4,3731.1,9.43]
[1762151875402,0.1443,3731.5,3731.3,1.3847533]
[1762151875600,0.1443,3731.5,3731.4,0.2254]
[1762151877495,0.3838,3731.5,3731.4,0.2254]
[1762151877696,0.2395,3731.4,3731.3,1.1593533]
[1762151879203,0.2395,3731.4,3730.6,9.429]
[1762151879398,0.2395,3731.4,3730.7,1.1593533]
[1762151881003,0.2395,3731.4,3730.6,10.5883533]
[1762151882705,0.1443,3731.5,3730.6,9.429]
[1762151882706,0.2395,3730.7,3730.6,9.429]
[1762151882913,0.2395,3730.7,3730.2,0.48262]
[1762151883205,0.2395,3730.7,3730.5,1.1593533]
[1762151883406,0.1443,3731.0,3730.6,0.2254]
[1762151883810,0.1443,3730.5,3730.0,0.14152384]
[1762151884113,0.1443,3730.5,3730.1,1.1593533]
[1762151885616,0.1443,3731.0,3730.4,1.3847533]
[1762151885817,0.29385116,3730.9,3730.4,1.3847533]
[1762151886116,0.1443,3731.5,3730.7,1.3847533]
[1762151886313,0.29382382,3731.4,3731.1,1.1593533]
[1762151886517,0.29382382,3731.3,3731.2,0.2254]
[1762151886722,0.1443,3732.0,3731.2,2.5441066]
[1762151886923,0.0028698,3732.3,3731.9,0.2254]
[1762151887121,0.29385226,3732.2,3731.9,0.2254]
[1762151887321,0.3838,3732.0,3731.5,0.1389]
[1762151887522,0.29385226,3731.9,3731.5,0.1389]
[1762151887724,0.29385226,3731.9,3731.6,1.1593533]
[1762151888320,0.53335226,3731.9,3731.8,0.2254]
[1762151888626,0.53335226,3731.9,3731.5,0.1389]
[1762151888926,0.53335226,3731.9,3731.2,0.48249]
[1762151888927,0.53335226,3731.8,3731.0,1.94035634]
[1762151889123,0.29385226,3731.7,3731.0,1.94035634]
[1762151889323,0.1443,3732.0,3731.0,1.94035634]
[1762151889623,0.29377584,3731.9,3731.1,0.4825]
[1762151889816,0.29377584,3731.8,3731.1,0.4825]
[1762151890016,0.29377584,3731.7,3731.6,0.2254]
[1762151890215,0.29377584,3731.9,3731.6,0.2254]
[1762151890418,0.29377584,3731.8,3731.7,0.2254]
[1762151890614,0.0028698,3732.3,3731.7,0.2254]
[1762151890819,0.29381023,3732.2,3731.7,0.2254]
[1762151891023,0.2395,3731.8,3731.0,1.94035634]
[1762151891227,0.2395,3731.8,3731.0,8.7399]
[1762151891425,0.2395,3731.8,3731.0,9.22241]
[1762151891630,0.2395,3731.8,3731.1,0.4825]
[1762151892727,0.2395,3731.8,3731.2,0.48249]
[1762151893027,0.2395,3731.8,3731.0,8.7399]
[1762151893332,0.2395,3731.8,3731.7,0.2254]
[1762151893526,0.2395,3731.8,3731.0,9.22241]
[1762151893527,0.28837775,3731.8,3731.5,0.1389]
[1762151893728,2.40089081,3733.1,3731.5,0.1389]
[1762151893926,0.66143053,3733.0,3731.5,0.1389]
[1762151894128,0.66143053,3732.9,3731.5,0.1389]
[1762151894435,0.66143053,3732.8,3731.5,0.1389]
[1762151894730,0.66143053,3732.7,3732.5,0.1389]
[1762151894926,0.66143053,3732.7,3732.6,0.2254]
[1762151895329,0.83073053,3732.7,3732.6,0.2254]
[1762151896339,0.66136736,3732.7,3732.6,0.2254]
[1762151896523,0.00334925,3732.8,3732.6,0.2254]
[1762151896725,0.00334925,3732.8,3732.7,0.2343]
[1762151896925,0.00334925,3732.8,3732.7,0.23706593]
[1762151897734,0.00334925,3732.8,3732.7,0.00276593]
[1762151897735,0.83349224,3732.8,3732.7,0.00276593]
[1762151899733,0.83349224,3732.8,3732.0,0.1389]
[1762151899734,8.83349224,3732.8,3732.0,0.1389]
[1762151899930,0.66144299,3732.7,3732.0,0.1389]
[1762151900130,0.66144299,3732.6,3732.0,0.1389]
[1762151900331,0.00334925,3732.8,3732.0,0.1389]
[1762151900535,0.66141858,3732.7,3732.0,0.1389]
[1762151900730,0.66141858,3732.6,3732.0,0.14149241]
[1762151901033,0.00334925,3732.8,3732.5,0.1324]
[1762151901240,0.1687,3732.6,3732.5,0.1324]
[1762151901436,0.83012378,3732.6,3732.5,0.1324]
[1762151903842,0.1687,3732.1,3732.0,0.14149241]
[1762151904441,0.00334925,3732.8,3732.0,0.37579241]
[1762151904642,0.1687,3732.1,3732.0,0.14149241]
[1762151905041,0.1687,3732.1,3732.0,0.00259241]
[1762151905535,0.45341302,3732.1,3732.0,0.00259241]
[1762151906039,0.45341302,3732.1,3732.0,0.13359241]
[1762151906337,0.45341302,3732.1,3732.0,0.00259241]
[1762151908844,0.28471302,3732.1,3732.0,0.37249241]
[1762151909033,0.45391302,3732.1,3732.0,0.37249241]
[1762151909239,0.45391302,3732.1,3732.0,0.13359241]
[1762151912049,0.45391302,3732.1,3732.0,0.00259241]
[1762151912545,0.1692,3731.6,3731.5,0.1389]
[1762151912742,0.45391302,3731.6,3731.5,0.1389]
[1762151913451,0.28471302,3731.6,3731.5,0.3778]
[1762151913639,0.28471302,3732.6,3731.5,0.38117472]
[1762151913839,2.36715845,3732.5,3731.5,0.38117472]
[1762151914042,0.94489512,3732.4,3731.5,0.38117472]
[1762151914240,0.94489512,3732.3,3731.5,0.38117472]
[1762151914538,0.94489512,3732.2,3731.5,0.38117472]
[1762151914738,0.94489512,3732.1,3731.5,0.38117472]
[1762151914947,0.94489512,3732.0,3731.5,0.38117472]
[1762151915244,0.28471302,3731.9,3731.5,0.38117472]
[1762151915445,0.28471302,3731.8,3731.5,0.38117472]
[1762151915637,0.28471302,3731.7,3731.6,0.2389]
[1762151916043,0.00334925,3732.8,3731.6,0.2389]
[1762151916241,0.94592642,3732.7,3731.6,0.2389]
[1762151916442,0.94592642,3732.6,3731.6,0.2389]
[1762151916643,0.1692,3731.6,3731.5,0.14227472]
[1762151916843,0.1692,3731.6,3731.4,0.47123068]
[1762151916844,0.1692,3731.5,3731.4,0.47123068]
[1762151917048,0.1692,3731.1,3731.0,0.1389]
[1762151917245,0.1692,3730.6,3730.5,0.1324]
[1762151917440,0.1692,3730.6,3730.5,0.3713]
[1762151917649,1.99549811,3731.8,3730.5,0.3713]
[1762151917950,0.95565483,3731.7,3730.5,0.37363053]
[1762151918146,0.95565483,3731.6,3730.5,0.37363053]
[1762151918345,0.95565483,3731.5,3730.5,0.37363053]
[1762151918550,0.95565483,3731.4,3730.5,0.37363053]
[1762151918749,0.95565483,3731.3,3730.5,0.37363053]
[1762151919048,1.99549811,3731.8,3730.5,0.37363053]
[1762151919049,0.95565483,3731.2,3730.5,0.37363053]
[1762151919352,0.28500072,3731.1,3730.5,0.37363053]
[1762151919547,0.28500072,3731.0,3730.5,0.37363053]
[1762151919749,0.28500072,3730.9,3730.5,0.37363053]
[1762151920049,0.28500072,3730.8,3730.5,0.37363053]
[1762151920257,1.99549811,3731.8,3730.5,0.37363053]
[1762151920447,0.95439741,3731.7,3730.5,0.37363053]
[1762151920648,0.95439741,3731.6,3730.5,0.37363053]
[1762151920850,0.1692,3730.6,3730.5,0.00233053]
[1762151921045,0.1692,3729.6,3729.5,0.131]
[1762151921348,0.45225286,3729.6,3729.5,0.131]
[1762151921654,0.28305286,3729.6,3729.5,0.3699]
[1762151921852,5.696,3730.6,3729.5,0.3699]